[Event "13th Senioren-Cup Tegernsee 2025"]
[Site "Rottach-Egern"]
[Date "2025.03.30"]
[Round "2.1"]
[White "Jahn, Constanze"]
[Black "Schneider-Zinner, Harald"]
[Result "0-1"]
[Annotator "RC"]
[ECO "D02"]
[WhiteElo "2028"]
[BlackElo "2327"]
[PlyCount "84"]
[EventDate "2025.03.25"]
[EventType "swiss"]
[EventCountry "GER"]
[SourceTitle "playchess.com"]
[Source "ChessBase"]
[SourceQuality "1"]
[TimeControl "9000+30"]

1. Nf3 {[%emt 0:20:03]} d5 {[%emt 0:21:53]} 2. d4 {[%emt 0:00:06]} Nf6 {[%emt 0:00:48]} 3. Bf4 {[%emt 0:00:09]} e6 {[%emt 0:01:02]} 4. e3 {[%emt 0:00:11]} c5 {[%emt 0:00:13]} 5. c3 {[%emt 0:00:52]} Nc6 {[%emt 0:00:22]} 6. Bd3 {[%emt 0:01:06]} Qb6 {[%emt 0:03:32]} 7. b3 {[%emt 0:03:17]} g6 {[%emt 0:10:41]} 8. Nbd2 {[%emt 0:05:20]} cxd4 {[%emt 0:09:23]} 9. exd4 {[%emt 0:00:54]} Nh5 {[%emt 0:04:23]} 10. Bg3 {[%emt 0:26:15]} Nxg3 {[%emt 0:02:02]} 11. hxg3 {[%emt 0:00:27]} Bg7 {[%emt 0:00:18]} 12. O-O {[%emt 0:02:34]} O-O {[%emt 0:00:31]} 13. b4 {[%emt 0:02:05]} e5 {[%emt 0:11:43]} 14. b5 {[%emt 0:06:52]} e4 {[%emt 0:01:12]} 15. bxc6 {[%emt 0:00:08]} Qxc6 {[%emt 0:02:32]} 16. Be2 {[%emt 0:18:18]} exf3 {[%emt 0:04:03]} 17. Bxf3 {[%emt 0:00:16]} Qxc3 {[%emt 0:03:18]} 18. Nb3 {[%emt 0:00:06]} Be6 {[%emt 0:02:20]} 19. Rc1 {[%emt 0:15:56]} Qb4 {[%emt 0:02:04]} 20. Re1 {[%emt 0:05:16]} b6 {[%emt 0:02:39]} 21. Bg4 {[%emt 0:13:26]} Bxg4 {[%emt 0:03:39]} 22. Qxg4 {[%emt 0:00:11]} a5 {[%emt 0:00:18]} 23. Red1 {[%emt 0:03:22]} Rae8 {[%emt 0:12:57]} 24. Qd7 {[%emt 0:04:56]} Re2 {[%emt 0:07:53]} 25. Qxd5 {[%emt 0:00:23]} Rxa2 {[%emt 0:02:27]} 26. Na1 {[%emt 0:05:34]} Rd2 {[%emt 0:05:57]} 27. Rxd2 {[%emt 0:03:36]} Qxd2 {[%emt 0:00:27]} 28. Nb3 {[%emt 0:00:12]} Qb4 {[%emt 0:04:46]} 29. Rd1 {[%emt 0:00:34]} Re8 {[%emt 0:04:56]} 30. Kh2 {[%emt 0:02:55]} h5 {[%emt 0:02:58]} 31. Rd3 {[%emt 0:04:50]} a4 {[%emt 0:11:35]} 32. Nd2 {[%emt 0:01:31]} b5 {[%emt 0:04:04]} 33. Rf3 {[%emt 0:04:19]} Re6 {[%emt 0:02:49]} 34. Ne4 {[%emt 0:01:25]} Qxd4 {[%emt 0:05:58]} 35. Qa8+ {[%emt 0:00:06]} Bf8 {[%emt 0:00:45]} 36. Rf4 {[%emt 0:02:42]} Qe5 {[%emt 0:01:28]} 37. Qb7 {[%emt 0:02:16]} Be7 {[%emt 0:00:38]} 38. Qc8+ {[%emt 0:01:27]} Kg7 {[%emt 0:01:45]} 39. Nc3 {[%emt 0:00:41]} Bf6 {[%emt 0:02:06]} 40. Nxa4 {[%emt 0:01:04]} bxa4 {[%emt 0:00:13]} 41. Rxa4 {[%emt 0:00:05]} Re8 {[%emt 0:00:25]} 42. Qb7 {[%emt 0:00:54]} h4 {[%emt 0:00:30]} 0-1

[Event "13th Senioren-Cup Tegernsee 2025"]
[Site "Rottach-Egern"]
[Date "2025.03.30"]
[Round "2.2"]
[White "Heinbuch, Detlef Ulrich"]
[Black "Wegemund, Hubert"]
[Result "1/2-1/2"]
[Annotator "RC"]
[ECO "D32"]
[WhiteElo "2263"]
[BlackElo "2018"]
[PlyCount "154"]
[EventDate "2025.03.25"]
[EventType "swiss"]
[EventCountry "GER"]
[SourceTitle "playchess.com"]
[Source "ChessBase"]
[SourceQuality "1"]
[TimeControl "9000+30"]

1. c4 {[%emt 0:20:07]} e6 {[%emt 0:20:29]} 2. Nf3 {[%emt 0:01:14]} d5 {[%emt 0:00:18]} 3. e3 {[%emt 0:00:48]} c5 {[%emt 0:00:58]} 4. cxd5 {[%emt 0:04:20]} exd5 {[%emt 0:00:05]} 5. d4 {[%emt 0:00:10]} Nc6 {[%emt 0:01:20]} 6. Nc3 {[%emt 0:03:12]} Nf6 {[%emt 0:00:38]} 7. Be2 {[%emt 0:00:55]} Be6 {[%emt 0:05:04]} 8. O-O {[%emt 0:04:12]} Be7 {[%emt 0:06:23]} 9. dxc5 {[%emt 0:06:05]} Bxc5 {[%emt 0:00:09]} 10. b3 {[%emt 0:00:43]} O-O {[%emt 0:00:46]} 11. Bb2 {[%emt 0:10:16]} Rc8 {[%emt 0:03:40]} 12. Na4 {[%emt 0:02:58]} Be7 {[%emt 0:01:14]} 13. Rc1 {[%emt 0:05:16]} Ne4 {[%emt 0:03:11]} 14. Nd4 {[%emt 0:04:09]} Re8 {[%emt 0:12:26]} 15. Nxe6 {[%emt 0:16:40]} fxe6 {[%emt 0:00:13]} 16. Bd3 {[%emt 1:17:25]} Nf6 {[%emt 0:03:11]} 17. Qe2 {[%emt 0:00:00]} Bd6 {[%emt 0:08:20]} 18. a3 {[%emt 0:00:00]} Qe7 {[%emt 0:03:56]} 19. b4 {[%emt 0:00:00]} Ne5 {[%emt 0:00:31]} 20. Bb5 {[%emt 0:00:00]} Rf8 {[%emt 0:00:41]} 21. f4 {[%emt 0:00:00]} Nc6 {[%emt 0:02:25]} 22. Nc5 {[%emt 0:00:00]} a5 {[%emt 0:01:48]} 23. Bd4 {[%emt 0:00:00]} axb4 {[%emt 0:00:21]} 24. Bxc6 {[%emt 0:00:00]} Rxc6 {[%emt 1:24:23]} 25. axb4 {[%emt 0:00:00]} Rfc8 {[%emt 0:00:00]} 26. Qb2 {[%emt 0:00:00]} Ng4 {[%emt 0:00:00]} 27. Nd3 {[%emt 0:00:00]} Rxc1 {[%emt 0:00:00]} 28. Rxc1 {[%emt 0:00:00]} Rxc1+ {[%emt 0:00:00]} 29. Qxc1 {[%emt 0:00:00]} Kf7 {[%emt 0:00:00]} 30. Bc5 {[%emt 0:00:00]} Bxc5 {[%emt 0:00:00]} 31. bxc5 {[%emt 0:00:00]} e5 {[%emt 0:00:00]} 32. h3 {[%emt 0:00:00]} e4 {[%emt 0:00:00]} 33. Nb4 {[%emt 0:00:00]} Nf6 {[%emt 0:00:00]} 34. c6 {[%emt 0:00:00]} Qc7 {[%emt 0:00:00]} 35. Qc5 {[%emt 0:00:00]} bxc6 {[%emt 0:00:00]} 36. Nxc6 {[%emt 0:00:00]} Ke8 {[%emt 0:00:00]} 37. Qb5 {[%emt 0:00:00]} Kf8 {[%emt 0:00:00]} 38. Kf2 {[%emt 0:00:00]} Qd6 {[%emt 0:00:00]} 39. Ke2 {[%emt 0:00:00]} h5 {[%emt 0:00:00]} 40. Qb4 {[%emt 0:00:56]} Qxb4 {[%emt 0:00:00]} 41. Nxb4 {[%emt 0:00:02]} Ke7 {[%emt 0:00:00]} 42. Kd2 {[%emt 0:00:29]} Kd6 {[%emt 0:00:00]} 43. Kc3 {[%emt 0:00:03]} Kc5 {[%emt 0:00:00]} 44. Nc2 {[%emt 0:00:13]} g6 {[%emt 0:00:00]} 45. Nd4 {[%emt 0:00:15]} Kd6 {[%emt 0:00:00]} 46. Nb5+ {[%emt 0:01:19]} Kc5 {[%emt 0:00:00]} 47. Nd4 {[%emt 0:00:05]} Kd6 {[%emt 0:00:00]} 48. Ne2 {[%emt 0:02:29]} Kc5 {[%emt 0:00:00]} 49. g3 {[%emt 0:04:00]} Ne8 {[%emt 0:00:00]} 50. g4 {[%emt 0:01:45]} hxg4 {[%emt 0:00:00]} 51. hxg4 {[%emt 0:00:01]} Nf6 {[%emt 0:00:00]} 52. g5 {[%emt 0:00:19]} Ne8 {[%emt 0:02:41]} 53. Nd4 {[%emt 0:00:32]} Kd6 {[%emt 0:00:38]} 54. Nb5+ {[%emt 0:01:17]} Kc5 {[%emt 0:00:14]} 55. Nd4 {[%emt 0:00:12]} Kd6 {[%emt 0:00:08]} 56. Nc2 {[%emt 0:00:31]} Kc5 {[%emt 0:00:23]} 57. Nd4 {[%emt 0:00:52]} Kd6 {[%emt 0:00:18]} 58. Kb4 {[%emt 0:02:43]} Nc7 {[%emt 0:01:40]} 59. Kc3 {[%emt 0:01:13]} Ne8 {[%emt 0:00:49]} 60. Ne2 {[%emt 0:00:58]} Ng7 {[%emt 0:01:01]} 61. Nd4 {[%emt 0:00:14]} Ne8 {[%emt 0:00:21]} 62. Kb4 {[%emt 0:00:33]} Nc7 {[%emt 0:00:28]} 63. f5 {[%emt 0:00:55]} gxf5 {[%emt 0:00:32]} 64. Nxf5+ {[%emt 0:00:14]} Ke6 {[%emt 0:02:39]} 65. Nd4+ {[%emt 0:00:29]} Kf7 {[%emt 0:02:14]} 66. Kc5 {[%emt 0:00:08]} Kg6 {[%emt 0:01:10]} 67. Kd6 {[%emt 0:00:02]} Ne8+ {[%emt 0:01:04]} 68. Kxd5 {[%emt 0:00:47]} Kxg5 {[%emt 0:00:21]} 69. Kxe4 {[%emt 0:00:30]} Nf6+ {[%emt 0:00:42]} 70. Kf3 {[%emt 0:00:18]} Kg6 {[%emt 0:00:36]} 71. Ne2 {[%emt 0:00:30]} Kf5 {[%emt 0:00:53]} 72. Nf4 {[%emt 0:00:24]} Ke5 {[%emt 0:00:38]} 73. Nd3+ {[%emt 0:01:05]} Kf5 {[%emt 0:00:35]} 74. Nf2 {[%emt 0:00:21]} Ke5 {[%emt 0:01:06]} 75. Ng4+ {[%emt 0:00:13]} Nxg4 {[%emt 0:00:05]} 76. Kxg4 {[%emt 0:00:06]} Ke4 {[%emt 0:00:08]} 77. Kg3 {[%emt 0:00:11]} Kxe3 {[%emt 0:00:48]} 1/2-1/2

[Event "13th Senioren-Cup Tegernsee 2025"]
[Site "Rottach-Egern"]
[Date "2025.03.30"]
[Round "2.3"]
[White "Pruesse, Horst"]
[Black "Belke, Frank"]
[Result "0-1"]
[Annotator "RC"]
[ECO "D75"]
[WhiteElo "2028"]
[BlackElo "2235"]
[PlyCount "86"]
[EventDate "2025.03.25"]
[EventType "swiss"]
[EventCountry "GER"]
[SourceTitle "playchess.com"]
[Source "ChessBase"]
[SourceQuality "1"]
[TimeControl "9000+30"]

1. c4 {[%emt 0:24:30]} Nf6 {[%emt 0:20:06]} 2. Nc3 {[%emt 0:00:20]} d5 {[%emt 0:00:13]} 3. cxd5 {[%emt 0:00:09]} Nxd5 {[%emt 0:00:01]} 4. g3 {[%emt 0:04:40]} g6 {[%emt 0:00:42]} 5. Bg2 {[%emt 0:00:39]} Nxc3 {[%emt 0:00:28]} 6. bxc3 {[%emt 0:00:04]} Bg7 {[%emt 0:00:05]} 7. Nf3 {[%emt 0:04:54]} c5 {[%emt 0:00:57]} 8. O-O {[%emt 0:00:57]} O-O {[%emt 0:00:03]} 9. d4 {[%emt 0:05:18]} cxd4 {[%emt 0:01:13]} 10. cxd4 {[%emt 0:00:03]} Nc6 {[%emt 0:00:04]} 11. e3 {[%emt 0:00:59]} Bf5 {[%emt 0:00:31]} 12. Qb3 {[%emt 0:06:05]} Be4 {[%emt 0:02:09]} 13. Nd2 {[%emt 0:04:39]} Bxg2 {[%emt 0:00:09]} 14. Kxg2 {[%emt 0:00:02]} Na5 {[%emt 0:02:39]} 15. Qa4 {[%emt 0:03:05]} a6 {[%emt 0:01:27]} 16. Ba3 {[%emt 0:05:51]} b5 {[%emt 0:00:25]} 17. Qd1 {[%emt 0:00:45]} Rc8 {[%emt 0:01:52]} 18. Nb3 {[%emt 0:07:20]} Nc4 {[%emt 0:01:46]} 19. Bc5 {[%emt 0:00:29]} Qd7 {[%emt 0:01:20]} 20. Qe2 {[%emt 0:10:58]} a5 {[%emt 0:14:50]} 21. a4 {[%emt 0:06:24]} bxa4 {[%emt 0:05:41]} 22. Qxc4 {[%emt 0:00:06]} axb3 {[%emt 0:00:50]} 23. Rxa5 {[%emt 0:03:43]} Rb8 {[%emt 0:00:19]} 24. Rb1 {[%emt 0:03:11]} Qb7+ {[%emt 0:03:02]} 25. Kg1 {[%emt 0:00:02]} Rfc8 {[%emt 0:06:26]} 26. Ra3 {[%emt 0:19:04]} b2 {[%emt 0:06:35]} 27. Qa2 {[%emt 0:06:43]} e6 {[%emt 0:11:50]} 28. Rc3 {[%emt 0:17:51]} h5 {[%emt 0:42:19]} 29. Rc2 {[%emt 0:00:20]} Qe4 {[%emt 0:00:35]} 30. Rcxb2 {[%emt 0:07:07]} Ra8 {[%emt 0:00:25]} 31. Qc4 {[%emt 0:00:19]} h4 {[%emt 0:01:20]} 32. Qc2 {[%emt 0:02:05]} Qf3 {[%emt 0:06:53]} 33. gxh4 {[%emt 0:03:34]} Bf6 {[%emt 0:04:55]} 34. Qe2 {[%emt 0:00:34]} Qe4 {[%emt 0:00:33]} 35. Rb4 {[%emt 0:04:12]} Kg7 {[%emt 0:01:31]} 36. h5 {[%emt 0:02:19]} Rh8 {[%emt 0:02:42]} 37. f3 {[%emt 0:01:06]} Qd5 {[%emt 0:01:59]} 38. Rb5 {[%emt 0:01:37]} Ra2 {[%emt 0:00:50]} 39. R5b2 {[%emt 0:06:23]} Rha8 {[%emt 0:03:57]} 40. Qd3 {[%emt 0:01:26]} Rxb2 {[%emt 0:04:04]} 41. Rxb2 {[%emt 0:00:04]} Ra1+ {[%emt 0:00:04]} 42. Kf2 {[%emt 0:00:27]} Qxh5 {[%emt 0:00:13]} 43. Bd6 {[%emt 0:00:50]} e5 {[%emt 0:00:09]} 0-1

[Event "13th Senioren-Cup Tegernsee 2025"]
[Site "Rottach-Egern"]
[Date "2025.03.30"]
[Round "2.4"]
[White "Pieper, Thomas"]
[Black "Hafner, Robert"]
[Result "1/2-1/2"]
[Annotator "RC"]
[ECO "B19"]
[WhiteElo "2178"]
[BlackElo "2011"]
[PlyCount "45"]
[EventDate "2025.03.25"]
[EventType "swiss"]
[EventCountry "GER"]
[SourceTitle "playchess.com"]
[Source "ChessBase"]
[SourceQuality "1"]
[TimeControl "9000+30"]

1. e4 {[%emt 0:20:04]} c6 {[%emt 0:20:05]} 2. d4 {[%emt 0:00:16]} d5 {[%emt 0:00:04]} 3. Nc3 {[%emt 0:00:05]} dxe4 {[%emt 0:00:06]} 4. Nxe4 {[%emt 0:00:07]} Bf5 {[%emt 0:00:07]} 5. Ng3 {[%emt 0:00:17]} Bg6 {[%emt 0:00:08]} 6. h4 {[%emt 0:00:25]} h6 {[%emt 0:00:05]} 7. Nf3 {[%emt 0:00:25]} Nd7 {[%emt 0:00:05]} 8. h5 {[%emt 0:00:10]} Bh7 {[%emt 0:00:06]} 9. Bd3 {[%emt 0:00:05]} Bxd3 {[%emt 0:00:05]} 10. Qxd3 {[%emt 0:00:05]} Ngf6 {[%emt 0:00:17]} 11. Bd2 {[%emt 0:00:21]} e6 {[%emt 0:00:05]} 12. Qe2 {[%emt 0:00:09]} Be7 {[%emt 0:01:20]} 13. O-O-O {[%emt 0:00:28]} O-O {[%emt 0:00:20]} 14. Nf1 {[%emt 0:02:57]} c5 {[%emt 0:06:19]} 15. g4 {[%emt 0:00:24]} Qb6 {[%emt 0:12:32]} 16. g5 {[%emt 0:01:05]} Nd5 {[%emt 0:00:18]} 17. gxh6 {[%emt 0:07:14]} cxd4 {[%emt 0:00:10]} 18. Rg1 {[%emt 0:01:36]} Ba3 {[%emt 0:00:17]} 19. Rxg7+ {[%emt 0:00:24]} Kh8 {[%emt 0:00:05]} 20. bxa3 {[%emt 0:02:18]} Nc3 {[%emt 0:00:59]} 21. Bxc3 {[%emt 0:05:37]} dxc3 {[%emt 0:00:07]} 22. Rh7+ {[%emt 0:00:29]} Kg8 {[%emt 0:00:06]} 23. Rg7+ {[%emt 0:01:26]} 1/2-1/2

[Event "13th Senioren-Cup Tegernsee 2025"]
[Site "Rottach-Egern"]
[Date "2025.03.30"]
[Round "2.5"]
[White "Kaiser, Guenter"]
[Black "Loew, Gerald"]
[Result "1/2-1/2"]
[Annotator "RC"]
[ECO "A01"]
[WhiteElo "2005"]
[BlackElo "2175"]
[PlyCount "52"]
[EventDate "2025.03.25"]
[EventType "swiss"]
[EventCountry "GER"]
[SourceTitle "playchess.com"]
[Source "ChessBase"]
[SourceQuality "1"]
[TimeControl "9000+30"]

1. b3 {[%emt 0:20:04]} e5 {[%emt 0:20:18]} 2. Bb2 {[%emt 0:00:09]} d6 {[%emt 0:00:38]} 3. e4 {[%emt 0:00:07]} Nf6 {[%emt 0:01:44]} 4. Nc3 {[%emt 0:00:09]} g6 {[%emt 0:02:22]} 5. d4 {[%emt 0:01:57]} exd4 {[%emt 0:03:02]} 6. Qxd4 {[%emt 0:00:26]} Bg7 {[%emt 0:09:41]} 7. O-O-O {[%emt 0:01:12]} O-O {[%emt 0:02:45]} 8. Qd2 {[%emt 0:02:08]} Nc6 {[%emt 0:03:16]} 9. Bb5 {[%emt 0:03:34]} Bd7 {[%emt 0:02:20]} 10. f3 {[%emt 0:05:55]} a6 {[%emt 0:02:43]} 11. Bxc6 {[%emt 0:00:09]} Bxc6 {[%emt 0:00:34]} 12. Nd5 {[%emt 0:02:03]} Re8 {[%emt 0:10:14]} 13. Nxf6+ {[%emt 0:02:08]} Bxf6 {[%emt 0:00:09]} 14. Bxf6 {[%emt 0:00:07]} Qxf6 {[%emt 0:00:04]} 15. Qd4 {[%emt 0:00:06]} Qxd4 {[%emt 0:11:24]} 16. Rxd4 {[%emt 0:00:10]} Re5 {[%emt 0:00:33]} 17. Nh3 {[%emt 0:03:10]} Rae8 {[%emt 0:05:05]} 18. Rhd1 {[%emt 0:00:56]} f5 {[%emt 0:02:34]} 19. exf5 {[%emt 0:02:48]} Rxf5 {[%emt 0:00:39]} 20. Nf4 {[%emt 0:04:35]} g5 {[%emt 0:11:47]} 21. Nd5 {[%emt 0:00:49]} Bxd5 {[%emt 0:01:25]} 22. Rxd5 {[%emt 0:00:10]} Ree5 {[%emt 0:00:44]} 23. Rxe5 {[%emt 0:01:42]} Rxe5 {[%emt 0:00:06]} 24. Rd4 {[%emt 0:02:03]} Kf7 {[%emt 0:02:34]} 25. Kd2 {[%emt 0:01:03]} Ke6 {[%emt 0:05:22]} 26. f4 {[%emt 0:04:28]} gxf4 {[%emt 0:17:11]} 1/2-1/2

[Event "13th Senioren-Cup Tegernsee 2025"]
[Site "Rottach-Egern"]
[Date "2025.03.30"]
[Round "2.6"]
[White "Hess, Christian"]
[Black "Moritz, Hartmut"]
[Result "1-0"]
[Annotator "RC"]
[ECO "A06"]
[WhiteElo "2168"]
[BlackElo "2001"]
[PlyCount "75"]
[EventDate "2025.03.25"]
[EventType "swiss"]
[EventCountry "GER"]
[SourceTitle "playchess.com"]
[Source "ChessBase"]
[SourceQuality "1"]
[TimeControl "9000+30"]

1. Nf3 {[%emt 0:20:08]} d5 {[%emt 0:20:52]} 2. e3 {[%emt 0:02:56]} c5 {[%emt 0:02:41]} 3. b3 {[%emt 0:02:05]} Nc6 {[%emt 0:03:04]} 4. Bb2 {[%emt 0:01:42]} Nf6 {[%emt 0:01:04]} 5. Bb5 {[%emt 0:01:46]} Bd7 {[%emt 0:06:52]} 6. O-O {[%emt 0:01:24]} e6 {[%emt 0:02:19]} 7. Bxc6 {[%emt 0:08:01]} Bxc6 {[%emt 0:03:37]} 8. Ne5 {[%emt 0:00:55]} Bd6 {[%emt 0:01:45]} 9. f4 {[%emt 0:01:20]} O-O {[%emt 0:20:51]} 10. d3 {[%emt 0:09:36]} Qe7 {[%emt 0:16:51]} 11. Nd2 {[%emt 0:10:49]} Nd7 {[%emt 0:05:51]} 12. Qh5 {[%emt 0:13:27]} f6 {[%emt 0:04:56]} 13. Nxc6 {[%emt 0:05:50]} bxc6 {[%emt 0:00:04]} 14. e4 {[%emt 0:07:22]} e5 {[%emt 0:00:39]} 15. Rae1 {[%emt 0:02:45]} Rae8 {[%emt 0:02:41]} 16. exd5 {[%emt 0:07:09]} cxd5 {[%emt 0:00:12]} 17. c4 {[%emt 0:00:58]} d4 {[%emt 0:05:03]} 18. f5 {[%emt 0:02:06]} Qf7 {[%emt 0:10:45]} 19. Qf3 {[%emt 0:04:32]} Bc7 {[%emt 0:00:57]} 20. Ne4 {[%emt 0:00:50]} Qe7 {[%emt 0:07:57]} 21. Ba3 {[%emt 0:01:29]} Kh8 {[%emt 0:08:12]} 22. g4 {[%emt 0:02:20]} Bb6 {[%emt 0:06:21]} 23. Re2 {[%emt 0:03:35]} g5 {[%emt 0:04:54]} 24. h4 {[%emt 0:04:30]} h6 {[%emt 0:02:45]} 25. Rh2 {[%emt 0:00:39]} Kg7 {[%emt 0:00:37]} 26. Kg2 {[%emt 0:03:34]} Rh8 {[%emt 0:02:07]} 27. Rfh1 {[%emt 0:01:03]} Ref8 {[%emt 0:06:52]} 28. Ng3 {[%emt 0:04:47]} Qd6 {[%emt 0:02:23]} 29. Rh3 {[%emt 0:09:43]} a5 {[%emt 0:02:06]} 30. Ne4 {[%emt 0:03:03]} Qe7 {[%emt 0:00:48]} 31. Qg3 {[%emt 0:01:29]} Ra8 {[%emt 0:00:55]} 32. hxg5 {[%emt 0:04:21]} hxg5 {[%emt 0:00:03]} 33. Qh2 {[%emt 0:00:39]} Rxh3 {[%emt 0:03:11]} 34. Qxh3 {[%emt 0:00:05]} Rg8 {[%emt 0:01:59]} 35. Qh7+ {[%emt 0:02:19]} Kf8 {[%emt 0:00:06]} 36. Qxe7+ {[%emt 0:01:01]} Kxe7 {[%emt 0:00:02]} 37. Rh7+ {[%emt 0:00:12]} Kd8 {[%emt 0:00:16]} 38. Rxd7+ {[%emt 0:19:00]} 1-0

[Event "13th Senioren-Cup Tegernsee 2025"]
[Site "Rottach-Egern"]
[Date "2025.03.30"]
[Round "2.7"]
[White "Fabig, Holger"]
[Black "Cordts, Ingo"]
[Result "0-1"]
[Annotator "RC"]
[ECO "B23"]
[WhiteElo "1997"]
[BlackElo "2151"]
[PlyCount "46"]
[EventDate "2025.03.25"]
[EventType "swiss"]
[EventCountry "GER"]
[SourceTitle "playchess.com"]
[Source "ChessBase"]
[SourceQuality "1"]
[TimeControl "9000+30"]

1. e4 {[%emt 0:20:06]} c5 {[%emt 0:20:06]} 2. Nc3 {[%emt 0:00:14]} e6 {[%emt 0:00:07]} 3. g3 {[%emt 0:00:07]} d5 {[%emt 0:00:10]} 4. exd5 {[%emt 0:00:28]} exd5 {[%emt 0:00:07]} 5. Bg2 {[%emt 0:00:39]} Nf6 {[%emt 0:00:07]} 6. d3 {[%emt 0:01:09]} h6 {[%emt 0:00:07]} 7. Nge2 {[%emt 0:03:23]} d4 {[%emt 0:01:34]} 8. Ne4 {[%emt 0:00:42]} Nxe4 {[%emt 0:00:18]} 9. Bxe4 {[%emt 0:02:19]} Bd6 {[%emt 0:01:21]} 10. O-O {[%emt 0:01:05]} O-O {[%emt 0:05:08]} 11. Nf4 {[%emt 0:04:21]} Nd7 {[%emt 0:08:34]} 12. Qf3 {[%emt 0:13:49]} Rb8 {[%emt 0:05:45]} 13. Qg2 {[%emt 0:10:35]} Nf6 {[%emt 0:10:57]} 14. Re1 {[%emt 1:38:33]} Nxe4 {[%emt 0:05:37]} 15. dxe4 {[%emt 0:00:00]} Re8 {[%emt 0:10:40]} 16. Bd2 {[%emt 0:00:00]} c4 {[%emt 0:07:18]} 17. Rad1 {[%emt 0:00:00]} Bc5 {[%emt 0:09:22]} 18. b4 {[%emt 0:00:00]} Bd6 {[%emt 0:16:52]} 19. Be3 {[%emt 0:00:00]} dxe3 {[%emt 0:02:14]} 20. Rxe3 {[%emt 0:00:00]} Bg4 {[%emt 0:11:30]} 21. f3 {[%emt 0:00:00]} Bxf4 {[%emt 0:01:12]} 22. Rxd8 {[%emt 0:00:00]} Bxe3+ {[%emt 0:00:14]} 23. Kf1 {[%emt 0:00:00]} Rbxd8 {[%emt 0:00:18]} 0-1

[Event "13th Senioren-Cup Tegernsee 2025"]
[Site "Rottach-Egern"]
[Date "2025.03.30"]
[Round "2.8"]
[White "Wolf, Richard"]
[Black "Lindam, Ingo"]
[Result "1/2-1/2"]
[Annotator "RC"]
[ECO "B47"]
[WhiteElo "1989"]
[BlackElo "2151"]
[PlyCount "60"]
[EventDate "2025.03.25"]
[EventType "swiss"]
[EventCountry "GER"]
[SourceTitle "playchess.com"]
[Source "ChessBase"]
[SourceQuality "1"]
[TimeControl "9000+30"]

1. e4 {[%emt 0:20:13]} c5 {[%emt 0:20:09]} 2. Nf3 {[%emt 0:00:10]} e6 {[%emt 0:00:07]} 3. d4 {[%emt 0:00:14]} cxd4 {[%emt 0:00:03]} 4. Nxd4 {[%emt 0:00:13]} Nc6 {[%emt 0:00:10]} 5. Nc3 {[%emt 0:00:24]} Qc7 {[%emt 0:00:09]} 6. g3 {[%emt 0:00:54]} a6 {[%emt 0:00:17]} 7. Bg2 {[%emt 0:00:18]} Nf6 {[%emt 0:00:09]} 8. O-O {[%emt 0:00:20]} Nxd4 {[%emt 0:00:14]} 9. Qxd4 {[%emt 0:00:22]} Bc5 {[%emt 0:00:09]} 10. Bf4 {[%emt 0:01:34]} d6 {[%emt 0:00:11]} 11. Qd2 {[%emt 0:05:28]} h6 {[%emt 0:00:53]} 12. Na4 {[%emt 0:17:36]} e5 {[%emt 0:02:28]} 13. Be3 {[%emt 0:07:58]} Bxe3 {[%emt 0:25:17]} 14. Qxe3 {[%emt 0:02:12]} Be6 {[%emt 0:04:38]} 15. Nb6 {[%emt 0:15:02]} Rd8 {[%emt 0:01:14]} 16. c4 {[%emt 0:00:33]} O-O {[%emt 0:11:04]} 17. Rac1 {[%emt 0:02:26]} Ng4 {[%emt 0:20:05]} 18. Qb3 {[%emt 0:00:47]} Qc5 {[%emt 0:02:25]} 19. h3 {[%emt 0:04:59]} Nf6 {[%emt 0:05:30]} 20. a3 {[%emt 0:02:53]} Nd7 {[%emt 0:13:51]} 21. Nd5 {[%emt 0:02:03]} Qa7 {[%emt 0:02:03]} 22. Rfd1 {[%emt 0:03:20]} Nb8 {[%emt 0:03:59]} 23. Ne7+ {[%emt 0:05:44]} Kh8 {[%emt 0:02:39]} 24. Qe3 {[%emt 0:06:48]} Qxe3 {[%emt 0:07:12]} 25. fxe3 {[%emt 0:00:09]} g6 {[%emt 0:01:59]} 26. Rd2 {[%emt 0:02:54]} Rd7 {[%emt 0:08:47]} 27. Nd5 {[%emt 0:00:27]} Nc6 {[%emt 0:06:46]} 28. Nb6 {[%emt 0:01:02]} Rc7 {[%emt 0:02:27]} 29. b4 {[%emt 0:05:55]} a5 {[%emt 0:02:58]} 30. b5 {[%emt 0:23:39]} Ne7 {[%emt 0:03:42]} 1/2-1/2

[Event "13th Senioren-Cup Tegernsee 2025"]
[Site "Rottach-Egern"]
[Date "2025.03.30"]
[Round "2.9"]
[White "Strobel, Walter"]
[Black "Brunner, Helmut"]
[Result "1/2-1/2"]
[Annotator "RC"]
[ECO "B15"]
[WhiteElo "2148"]
[BlackElo "1979"]
[PlyCount "76"]
[EventDate "2025.03.25"]
[EventType "swiss"]
[EventCountry "GER"]
[SourceTitle "playchess.com"]
[Source "ChessBase"]
[SourceQuality "1"]
[TimeControl "9000+30"]

1. e4 {[%emt 0:20:04]} c6 {[%emt 0:20:22]} 2. d4 {[%emt 0:00:17]} d5 {[%emt 0:00:06]} 3. Nc3 {[%emt 0:00:23]} dxe4 {[%emt 0:00:55]} 4. Nxe4 {[%emt 0:00:08]} Nf6 {[%emt 0:01:40]} 5. Nxf6+ {[%emt 0:00:06]} exf6 {[%emt 0:00:09]} 6. c3 {[%emt 0:00:32]} Bd6 {[%emt 0:01:08]} 7. Bd3 {[%emt 0:00:06]} Qc7 {[%emt 0:10:02]} 8. Ne2 {[%emt 0:00:38]} Be6 {[%emt 0:06:35]} 9. Qc2 {[%emt 0:07:14]} g6 {[%emt 0:23:56]} 10. Bh6 {[%emt 0:02:17]} Nd7 {[%emt 0:03:15]} 11. h4 {[%emt 0:01:08]} O-O-O {[%emt 0:05:01]} 12. Qa4 {[%emt 0:06:06]} Nb6 {[%emt 0:22:16]} 13. Qc2 {[%emt 0:03:47]} Rhe8 {[%emt 0:07:58]} 14. Kf1 {[%emt 0:02:47]} Nd5 {[%emt 0:00:40]} 15. Qd2 {[%emt 0:01:51]} f5 {[%emt 0:16:10]} 16. a3 {[%emt 0:03:10]} Nf6 {[%emt 0:02:34]} 17. Bg5 {[%emt 0:01:02]} Be7 {[%emt 0:00:11]} 18. Nf4 {[%emt 0:02:49]} Qd7 {[%emt 0:12:50]} 19. Re1 {[%emt 0:06:33]} Nd5 {[%emt 0:04:26]} 20. Bxe7 {[%emt 0:08:57]} Rxe7 {[%emt 0:00:48]} 21. f3 {[%emt 0:04:34]} Rde8 {[%emt 0:03:03]} 22. Kf2 {[%emt 0:01:23]} Nxf4 {[%emt 0:01:00]} 23. Qxf4 {[%emt 0:00:07]} Bd5 {[%emt 0:01:33]} 24. Rxe7 {[%emt 0:10:57]} Rxe7 {[%emt 0:00:15]} 25. Re1 {[%emt 0:01:43]} Rxe1 {[%emt 0:00:59]} 26. Kxe1 {[%emt 0:00:02]} Qe7+ {[%emt 0:01:37]} 27. Kd2 {[%emt 0:01:11]} h5 {[%emt 0:02:33]} 28. c4 {[%emt 0:02:52]} Be6 {[%emt 0:00:06]} 29. g3 {[%emt 0:00:12]} Qc7 {[%emt 0:02:36]} 30. Qxc7+ {[%emt 0:05:04]} Kxc7 {[%emt 0:00:02]} 31. Ke3 {[%emt 0:00:11]} Kd6 {[%emt 0:01:12]} 32. b4 {[%emt 0:02:45]} b6 {[%emt 0:03:23]} 33. Be2 {[%emt 0:01:49]} f6 {[%emt 0:00:38]} 34. c5+ {[%emt 0:03:11]} Kc7 {[%emt 0:02:11]} 35. Kf4 {[%emt 0:01:33]} b5 {[%emt 0:01:40]} 36. Bd3 {[%emt 0:01:33]} Bf7 {[%emt 0:01:27]} 37. Bb1 {[%emt 0:20:38]} Kd7 {[%emt 0:00:13]} 38. Bc2 {[%emt 0:00:12]} Kc7 {[%emt 0:00:49]} 1/2-1/2